Cogmind - Beta 14 @@@ ROGUE MODE // 2024.08.29 @ 22:34:42 Player: THN-L0C Result: Destroyed by as-41375 with Assembled Blade Performance ------------- Evolutions (0) 0 Regions Visited (4) 800 Robots Destroyed (17) 85 Value Destroyed (577) 577 Prototype IDs (23) 460 Alien Tech Used (0) 0 Bonus (0) 0 TOTAL SCORE: 1922 Bonus ------- None Cogmind --------- Core Integrity 0/250 Matter 300/300 Energy 100/100 System Corruption 0% Temperature Cool (0) Movement Core (350) Ox6 Location -9/Mines Parts ------- > --- POWER (1) -------- (None) > --- PROPULSION (2) --- (None) > --- UTILITY (2) ------ Large Storage Unit Chronowheel > --- WEAPON (2) ------- (None) > --- INVENTORY (15) --- Improved Ion Engine Improved Ion Engine Improved Heat Sink Compact Battery (200) Compact Matter Pod (150) Improved Sensor Array Hardened Medium Armor Plating Reflective Plating Particle Gun Spread Laser Pulse Rifle Mini Grenade Launcher Mini Grenade Launcher Makeshift Spear Peak State ------------ > --- POWER ------------ (None) > --- PROPULSION ------- Advanced Treads > --- UTILITY ---------- Large Storage Unit Chronowheel > --- WEAPON ----------- Spread Laser > --- INVENTORY -------- Improved Ion Engine Improved Ion Engine Improved Heat Sink Compact Battery Compact Matter Pod Improved Sensor Array Hardened Medium Armor Plating Reflective Plating Particle Gun Spread Laser Pulse Rifle Mini Grenade Launcher Mini Grenade Launcher Makeshift Spear [Rating: 22] Favorites ----------- Power Improved Ion Engine Engine Improved Ion Engine Propulsion Light Treads Treads Light Treads Utility Large Storage Unit Device Improved Heat Sink Storage Large Storage Unit Processor Signal Interpreter Weapon Spread Laser Energy Gun Spread Laser Impact Weapon Flail Build | -11 -10 -10 -10 -9 ------- Run | Yrd Mat Min Exi Min Slots Evolved . | . . . . . Power . | . . . . . Propulsion . | . . . . . Utility . | . . . . . Weapon . | . . . . . Parts Attached 29 | 7 15 3 2 2 Power 3 | 1 2 . . . Engine 3 | 1 2 . . . Core . | . . . . . Reactor . | . . . . . Propulsion 3 | 2 . 1 . . Treads 3 | 2 . 1 . . Leg . | . . . . . Wheel . | . . . . . Hover . | . . . . . Flight . | . . . . . Utility 12 | 2 5 1 2 2 Device 9 | 1 4 1 2 1 Storage 2 | 1 1 . . . Processor 1 | . . . . 1 Hackware . | . . . . . Protection . | . . . . . Artifact . | . . . . . Weapon 11 | 2 8 1 . . Energy Gun 9 | 2 6 1 . . Energy Cannon . | . . . . . Ballistic Gun . | . . . . . Ballistic Cannon . | . . . . . Launcher . | . . . . . Special Weapon . | . . . . . Impact Weapon 2 | . 2 . . . Slashing Weapon . | . . . . . Piercing Weapon . | . . . . . Special Melee Weapon . | . . . . . Unidentified Prototypes . | . . . . . Parts Lost 5 | . . . . 5 Power 1 | . . . . 1 Propulsion 2 | . . . . 2 Utility . | . . . . . Weapon 2 | . . . . 2 Highest Loss Streak 5 | . . . . 5 To Critical Strikes . | . . . . . Average Slot Usage (%) 99 | . 100 100 100 96 Engine 13 | . 14 14 14 13 Treads 27 | . 28 28 28 25 Device 13 | . 14 14 14 7 Storage 14 | . 14 14 14 14 Energy Gun 27 | . 27 28 28 27 Peak Build Rating 22 | 7 14 17 18 22 Average Rating 12 | 5 10 14 17 17 On Entrance 11 | . 7 14 17 18 Naked Turns . | . . . . . Heaviest Build 38 | 15 34 34 38 34 Greatest Support 42 | 40 40 42 42 42 Greatest Overweight (x) 7 | . . . . 7 Average Overweight (x) . | . . . . . Largest Inventory Capacity 15 | 8 15 15 15 15 Average Capacity 13 | 7 13 15 15 15 Most Carried 15 | 1 15 15 15 15 Average Carried 11 | . 10 14 14 14 Final Capacity 15 | 8 15 15 15 15 Final Carried 15 | 1 15 15 15 14 Class Distribution -------------------- 100% | Mutant Dominant Class ---------------- Mutant | -10/Materials Mutant | -10/Mines Mutant | -10/Exiles Mutant | -9/Mines Resources | -11 -10 -10 -10 -9 ----------- Run | Yrd Mat Min Exi Min Matter Collected 699 | 243 327 94 . 35 Remotely . | . . . . . Salvage Created 494 | 45 409 . . 40 Parts 31 | 7 22 . . 2 Haulers Intercepted . | . . . . . Recyclers Shooed 3 | 1 1 1 . . Parts Field Recycled . | . . . . . Retrieved Matter . | . . . . . Parts Self-Destructed . | . . . . . Prevented . | . . . . . Kills | -11 -10 -10 -10 -9 ------- Run | Yrd Mat Min Exi Min Combat Hostiles Destroyed 14 | . 13 . . 1 Guns 14 | . 13 . . 1 Classes Destroyed 4 | 1 2 . . 1 Tunneler 2 | 2 . . . . Watcher 1 | . 1 . . . Grunt 13 | . 13 . . . Demolisher 1 | . . . . 1 Best Kill Streak 2 | 1 2 . . 1 Combat Bots Only 2 | . 2 . . 1 Max Kills in Single Turn 1 | 1 1 . . 1 Gunslinging . | . . . . . Exploded . | . . . . . Melee . | . . . . . Uniques/NPCs Destroyed . | . . . . . Combat | -11 -10 -10 -10 -9 -------- Run | Yrd Mat Min Exi Min Hostile Shots Fired 59 | . 45 . . 14 Missed 13 | . 12 . . 1 Damage Taken 996 | . 437 . . 559 Core 260 | . 140 . . 120 Absorbed by Shields . | . . . . . Core Remaining (%) 100 | 100 . . . . Volleys Fired 55 | 4 41 1 . 9 Largest 2 | 2 2 2 . 2 Hottest 130 | 100 130 130 . 130 Shots Fired 88 | 8 67 3 . 10 Gun 88 | 8 67 3 . 10 Cannon . | . . . . . Launcher . | . . . . . Special . | . . . . . Kinetic . | . . . . . Thermal 88 | 8 67 3 . 10 Explosive . | . . . . . Electromagnetic . | . . . . . Robot Hit Streak 10 | 6 10 6 . 4 Robot Miss Streak 7 | . 7 4 . 4 Penetration Max . | . . . . . Secondary Targets . | . . . . . Shots Hit Robots 73 | 6 61 3 . 3 Core Hits 83 | 3 76 2 . 2 Critical Kills . | . . . . . Critical Parts Destroyed . | . . . . . Critical Strikes 1 | 1 . . . . Burn 1 | 1 . . . . Melee Attacks 4 | . 4 . . . Impact 4 | . 4 . . . Slashing . | . . . . . Piercing . | . . . . . Sneak Attacks . | . . . . . Combat Hostiles . | . . . . . Follow-up Attacks . | . . . . . Damage Inflicted 1000 | 74 837 35 . 54 Guns 993 | 74 830 35 . 54 Cannons . | . . . . . Explosions . | . . . . . Melee . | . . . . . Ramming 7 | . 7 . . . Kinetic . | . . . . . Thermal 993 | 74 830 35 . 54 Explosive . | . . . . . Electromagnetic . | . . . . . Impact . | . . . . . Slashing . | . . . . . Piercing . | . . . . . Highest Corruption 1 | . 1 1 1 . Average Corruption 1 | . 1 1 1 . Corruption Purged 1 | . . . 1 . Corruption Blocked . | . . . . . Effects 8 | . 5 2 1 . Message Errors 2 | . 1 . 1 . Matter Fused 1 | . . 1 . . Heat Flow Errors 1 | . 1 . . . Energy Discharges 2 | . 2 . . . Data Loss (minor) 1 | . 1 . . . Misfires 1 | . . 1 . . Overload Shots . | . . . . . Overflow Damage . | . . . . . Projectiles . | . . . . . Explosions . | . . . . . Melee . | . . . . . Knockbacks . | . . . . . Impact . | . . . . . Kinetic . | . . . . . Secondary . | . . . . . Self-Inflicted Damage . | . . . . . Shots . | . . . . . Rammed 2 | . 2 . . . Targets Rammed 2 | . 2 . . . Kicked . | . . . . . Crushed . | . . . . . Highest Temperature 347 | 117 347 30 . 274 Average Temperature 86 | 49 80 20 . 148 Received Heat Transfer 249 | . 249 . . . Siege Activations . | . . . . . Robots Corrupted . | . . . . . Combat Hostiles . | . . . . . Parts Fried . | . . . . . Impact Corruptions . | . . . . . Robots Melted . | . . . . . Combat Hostiles . | . . . . . Parts Melted 2 | 1 1 . . . Heat Transferred 1622 | 296 1182 45 . 99 Parts Sabotaged . | . . . . . Parts Stolen . | . . . . . Parts Stripped . | . . . . . Power Chain Reactions . | . . . . . Alert | -11 -10 -10 -10 -9 ------- Run | Yrd Mat Min Exi Min Peak Influence 283 | 10 283 88 . 20 Initial 88 | . 6 88 . . Average 73 | 2 85 88 . . Maximum Alert Level 1 | . 1 . . . Low Security (%) 85 | 100 81 100 . 100 Level 1 14 | . 18 . . . Level 2 . | . . . . . Level 3 . | . . . . . Level 4 . | . . . . . Level 5 . | . . . . . High Security . | . . . . . Max Security . | . . . . . Squads Dispatched 4 | . 3 1 . . Investigation 2 | . 1 1 . . Extermination . | . . . . . Reinforcement 2 | . 2 . . . Assault . | . . . . . Garrison . | . . . . . Intercept . | . . . . . Searches Triggered . | . . . . . Construction Impeded . | . . . . . Haulers Reinforced . | . . . . . Active Scanning Responses . | . . . . . Cargo Convoy Interrupts . | . . . . . Stealth | -11 -10 -10 -10 -9 --------- Run | Yrd Mat Min Exi Min Distress Signals 4 | . 3 1 . . Communications Jammed . | . . . . . Distress Signals . | . . . . . Times Spotted 29 | . 25 . . 4 Peak Tracking Total 3 | . 3 1 . 3 Tactical Retreats 3 | . 3 . . . Traps | -11 -10 -10 -10 -9 ------- Run | Yrd Mat Min Exi Min Traps Triggered 2 | . 2 . . . Indirectly . | . . . . . Trap Hack Attempts . | . . . . . Triggered . | . . . . . Disarmed . | . . . . . Reprogrammed . | . . . . . Reused . | . . . . . Traps Extracted . | . . . . . Installed . | . . . . . Triggered . | . . . . . Machines | -11 -10 -10 -10 -9 ---------- Run | Yrd Mat Min Exi Min Machines Disabled . | . . . . . Max in Single Turn . | . . . . . Machines Repaired . | . . . . . Machines Dismantled . | . . . . . Machines Sabotaged . | . . . . . Overloaded Fab Kills . | . . . . . Hacking | -11 -10 -10 -10 -9 --------- Run | Yrd Mat Min Exi Min Machines Accessed 7 | . 3 1 2 1 Terminals 3 | . 3 . . . Fabricators . | . . . . . Repair Stations . | . . . . . Recycling Units . | . . . . . Scanalyzers . | . . . . . Garrison Access . | . . . . . Total Hacks 14 | . 7 1 5 1 Successful 10 | . 3 1 5 1 Failed 4 | . 4 . . . Catastrophic . | . . . . . Database Lockouts . | . . . . . Manual 13 | . 7 . 6 . Terminals 7 | . 7 . . . Fabricators . | . . . . . Repair Stations . | . . . . . Recycling Units . | . . . . . Scanalyzers . | . . . . . Garrison Access . | . . . . . Terminal Hacks 7 | . . 1 5 1 Record 4 | . . . 4 . Open Door 2 | . . 1 . 1 Derelict Proto ID Bank 1 | . . . 1 . Fabricator Hacks . | . . . . . Repair Station Hacks . | . . . . . Recycling Unit Hacks . | . . . . . Scanalyzer . | . . . . . Garrison Access Hacks . | . . . . . Unauthorized Hacks 3 | . 3 . . . Terminals 3 | . 3 . . . Skim 3 | . 3 . . . Fabricators . | . . . . . Repair Stations . | . . . . . Recycling Units . | . . . . . Scanalyzers . | . . . . . Garrison Access . | . . . . . Data Cores Recovered . | . . . . . Used . | . . . . . Hacking Detections 3 | . 3 . . . Full Trace Events . | . . . . . Feedback Events . | . . . . . Feedback Blocked . | . . . . . Robot Schematics Acquired . | . . . . . Robots Built . | . . . . . Authchips . | . . . . . Time . | . . . . . Total Robot Build Rating . | . . . . . Part Schematics Acquired . | . . . . . Parts Built . | . . . . . Authchips . | . . . . . Time . | . . . . . Total Part Build Rating . | . . . . . Parts Repaired . | . . . . . Time . | . . . . . Parts Recycled . | . . . . . Recycled Matter . | . . . . . Retrieved Matter . | . . . . . Retrieved Components . | . . . . . Parts Scanalyzed . | . . . . . Part Schematics Acquired . | . . . . . Parts Damaged . | . . . . . Bothacking | -11 -10 -10 -10 -9 ------------ Run | Yrd Mat Min Exi Min Used RIF Installer . | . . . . . Robots Hacked . | . . . . . Non-combat . | . . . . . Combat . | . . . . . Robot Hacks Applied . | . . . . . Relay Couplers Released . | . . . . . Fabnet Peak Effective % . | . . . . . Robots Rewired 1 | . . . 1 . Allies Hacked . | . . . . . Hacks Repelled . | . . . . . Allies | -11 -10 -10 -10 -9 -------- Run | Yrd Mat Min Exi Min Total Allies 1 | . . . 1 . Largest Group 1 | . . . 1 1 Highest-Rated Group 8 | . . . 8 8 Highest-Rated Ally 8 | . . . 8 8 Total Orders . | . . . . . Ally Attacks 1 | . . . . 1 Total Damage 11 | . . . . 11 Kills . | . . . . . Allies Corrupted . | . . . . . Allies Melted . | . . . . . Intel | -11 -10 -10 -10 -9 ------- Run | Yrd Mat Min Exi Min Robot Analysis Total . | . . . . . Derelict Logs Recovered 1 | . . 1 . . Drone Launches . | . . . . . Drone Recoveries . | . . . . . Exploration | -11 -10 -10 -10 -9 ------------- Run | Yrd Mat Min Exi Min Turns Passed 2964 | 122 1723 231 685 203 Spaces Moved 1442 | 66 729 103 435 109 Core 9 | 7 . . . 2 Treads 1433 | 59 729 103 435 107 Legs . | . . . . . Wheels . | . . . . . Hover . | . . . . . Flight . | . . . . . Fastest Speed 50 | 50 160 152 152 152 Average Speed 156 | 148 160 157 152 158 Slowest Speed 400 | 160 160 160 152 400 Overloaded Moves . | . . . . . Propulsion Burnouts . | . . . . . Robots Hopped . | . . . . . Cave-ins Triggered . | . . . . . Exploration Rate (%) 41 | 5 89 14 89 12 Regions Visited 4 Branch Regions 3 Pre-discovered Areas 1 | . . . . 1 Known Exits Taken . | . . . . . Unknown Exits Taken 4 | 1 1 1 1 . Scrap Searched 1 | . . . . 1 Spaces Dug 2 | . 2 . . . Terrain Destroyed 2 | . 2 . . . Melee 2 | . 2 . . . Projectile . | . . . . . AOE . | . . . . . Terrain Rammed . | . . . . . Walls Destroyed . | . . . . . Machines Disabled . | . . . . . Actions | -11 -10 -10 -10 -9 --------- Run | Yrd Mat Min Exi Min Total 2056 | 79 1213 175 459 130 Wait 462 | 2 395 55 2 8 Move 1438 | 65 728 102 434 109 Hop . | . . . . . Pick Up 28 | 1 18 6 2 1 Fast Attach 7 | 7 . . . . Attach 1 | . . 1 . . Detach . | . . . . . Swap 21 | . 15 2 2 2 Drop 21 | . 10 8 2 1 Fire 55 | 4 41 1 . 9 Melee 4 | . 4 . . . Ram . | . . . . . Kick . | . . . . . Crush 2 | . 2 . . . Escape Stasis . | . . . . . Rewire 17 | . . . 17 . Trap . | . . . . . Miscellaneous . | . . . . . Route ------- -11/Scrapyard -10/Materials (discovered 6 exits: [*Mat x3] / *Min x2 / [*Sub]) -10/Mines -10/Exiles (discovered 2 exits: *Min x2) -9/Mines (discovered 1 exit: *Mat) History --------- Turn | Location | Event 8 | -11/Scrapyard | Discovered new exit (range 13) 123 | -11/Scrapyard | Entered Materials 148 | -10/Materials | Discovered new exit (range 6) 301 | -10/Materials | Build established: Mutant 750 | -10/Materials | Discovered new exit (range 16) 902 | -10/Materials | Discovered new exit (range 13) 1130 | -10/Materials | Discovered new exit (range 6) 1344 | -10/Materials | Discovered new exit (range 16) 1525 | -10/Materials | Core integrity fell below 50% 1616 | -10/Materials | Discovered new exit (range 16) 1846 | -10/Materials | Entered Mines 1908 | -10/Mines | Learned 2 Materials zone layouts 1944 | -10/Mines | Met a Derelict shopkeep closing up shop 2069 | -10/Mines | Deemed a non-threat by the Exiles lab entrance 2071 | -10/Mines | Discovered new exit (range 5) 2077 | -10/Mines | Entered Exiles 2077 | -10/Exiles | Found Exiles lab destroyed 2100 | -10/Exiles | Discovered new exit (range 15) 2606 | -10/Exiles | Opened EX-Vault 2615 | -10/Exiles | Found Chronowheel 2747 | -10/Exiles | Discovered new exit (range 11) 2762 | -10/Exiles | Entered Mines 2762 | -9/Mines | Accompanied by 1 ally 2762 | -9/Mines | Discovered new exit (range 11) 2773 | -9/Mines | Learned location of Storage (-7) 2863 | -9/Mines | Identified exit to Materials 2907 | -9/Mines | Assembled infested the area 2920 | -9/Mines | Met a Derelict who couldn't figure out how to use a Trap Extractor 2951 | -9/Mines | Activated Chronowheel 2965 | -9/Mines | Core integrity fell below 20% 2965 | -9/Mines | Destroyed by as-41375 with Assembled Blade Last Messages --------------- 02947_ The unstable cave ceiling collapses. 02947_ U-05 Engineer lays Concrete. 02949_ The unstable cave ceiling collapses. 02949_ U-05 Engineer builds a Wall. 02950_ U-05 Engineer lays Concrete. 02950_ Imp. Ion Engine destroyed. 02950_ Particle Gun destroyed. 02951_ Discarded Signal Interpreter. 02951_ Spacetime feels off. 02951_ U-05 Engineer lays Concrete. 02951_ R-06 Scavenger collects Mni. Grenade Launcher. 02952_ U-05 Engineer builds a Wall. 02957_ The unstable cave ceiling collapses. 02958_ Adv. Treads destroyed. 02960_ The unstable cave ceiling collapses. 02961_ U-05 Engineer builds a Wall. 02962_ as-41375 sneak attacks. 02964_ Spread Laser destroyed. 02964_ R-06 Scavenger destroyed. 02965_ U-05 Engineer lays Concrete. Map ----- +----------------------------------------------------+ | | | | | | | | | | | | | | | ?????????????????????????????????????????????????? | | ?????????????????????????????????????????????????? | | ?????????????????????????????????????????????????? | | ?????????????????????????????????????????????????? | | ?????????????????????????????????????????????????? | | ?????????????????????????????????????????????????? | | ?????????????????????????????????????????????????? | | ????????????????????#####????????????????????????? | | ??????????????????### # ####?????????????????????? | | ?????????????????## # #?????????????????????? | | ????????????????## # #?????????????????????? | | ???????????????## ###???????????????????? | | ???????????????# ] #???????????????????? | | ######?????????#" # #???????????????????? | | #?????????# [ #???????????????????? | | """ ########### # % #???????????????????? | | """ [![% ## * ! #???????????????????? | | """ ######## ##### ]% ####????????????????? | | #??????# %% u % d@aa #????????????????? | | #??????###### ###! ?????????? | | #?????????# # #?????? ??????????? | | #?????????# ### #####????????????????????? | | #?????????####??###?????????????????????????? | | #???????????????????????????????????????????? | | ## ###???????????????????????????????????????????? | | ?# #?????????????????????????????????????????????? | | ?# #?????????????????????????????????????????????? | | ?# #?????????????????????????????????????????????? | | ## ##????????????????????????????????????????????? | | ##???????????????????????????????????????????? | | #???????????????????????????????????????????? | | #???????????????????????????????????????????? | | < ##???????????????????????????????????????????? | | # ##????????????????????????????????????????????? | | ####?????????????????????????????????????????????? | | ?????????????????????????????????????????????????? | | ?????????????????????????????????????????????????? | | ?????????????????????????????????????????????????? | | ?????????????????????????????????????????????????? | | ?????????????????????????????????????????????????? | | ?????????????????????????????????????????????????? | | ?????????????????????????????????????????????????? | | ?????????????????????????????????????????????????? | +----------------------------------------------------+ Best States ------------- Heat Dissipation 39 Energy Generation 12 Energy Capacity 265 Matter Stores 300 Matter Capacity 300 Sight Range 16 Terrain Scan Density 10 Evasion (%) 40 Recoil Reduction 2 Item Schematics ----------------- None Robot Schematics ------------------ None Fabricated ------------ Nothing Alien Tech Used ----------------- None Achievements -------------- None Challenges ------------ None Game ------ Seed WeightDirtyMatter Manual? 0 Play Time 00:15:28 Cumulative 161.0 hours Start 2024.08.29 @ 22:17:18 End 2024.08.29 @ 22:34:42 Sessions 1 Manual Loads 0 Difficulty Rogue Special Mode None Game No. 123 Rogue 123 Adventurer 0 Explorer 0 Win Type - Total 1 Types 0/0/0/1/0/0/0/0/0 Lore% 60 Gallery% 68 Achievement% 50 Wizard Run 0 Options --------- Layout 2 ASCII 0 Keyboard 1 Movement Vi Keybinds 0 Fullscreen 1 Font 32/SmallcapsGlow Map View 77x44 Zoom Use 0% Tactical HUD 1 Map Filters NONE Filters NONE Steam 1 RUN: c84ca0f3-a0db-4409-9d52-e89ba99be684